fUSD/lending_fUSD_20240125
["ID","MTS","AMOUNT","RATE_DAILY","PERIOD"]
[312657411,1706141435201,-155.50144254,0.00021915,2]
[312657412,1706141435211,-156.20116058,0.00021915,2]
[312657413,1706141435221,-413.41514132,0.00021915,2]
[312657414,1706141435231,-160.63394876,0.00021915,2]
[312657415,1706141435241,-384.685284,0.00021915,2]
[312657416,1706141435251,-537.20957409,0.00021915,2]
[312657417,1706141435265,-1027.13631238,0.00021916,2]
[312657418,1706141435278,-353.17177551,0.00021916,2]
[312657419,1706141435288,-155.48315498,0.00021916,2]
[312657420,1706141435299,-155.28486431,0.00021916,2]
[312657421,1706141435309,-250.0,0.00021918,2]
[312657422,1706141435320,-19441.87,0.00021918,2]
[312657423,1706141435330,-16078.89842778,0.00021957,2]
[312657424,1706141435340,-160.69,0.00021971,2]
[312657425,1706141435351,-5007.65404292,0.00021999,2]
[312657426,1706141435362,-2783.81299809,0.00022,2]
[312657427,1706141435372,-1043.15716476,0.00022,2]
[312657428,1706141435382,-1012.73453479,0.00022048,2]
[312657429,1706141435392,-16078.89842778,0.00022075,2]
[312657430,1706141435402,-150.0,0.00022087,2]
[312657431,1706141435412,-285.51230915,0.00022116,2]
[312657432,1706141435421,-4546.15556741,0.00022117,2]
[312657433,1706141435431,-156.93056967,0.00022117,2]
[312657434,1706141435440,-811.1716,0.00022118,2]
[312657435,1706141435450,-311.9185,0.00022118,2]
[312657436,1706141435460,-1474.78279844,0.00022118,2]
[312657437,1706141435470,-220.35900405,0.00022118,2]
[312657438,1706141435481,-16078.89842778,0.00022193,2]
[312657439,1706141435491,-155.55024395,0.00022212,2]
[312657440,1706141435501,-207.16766932,0.00022213,2]
[312657441,1706141435512,-175.71898087,0.00022213,2]
[312657442,1706141435522,-155.0,0.00022213,2]
[312657443,1706141435534,-155.0,0.00022213,2]
[312657444,1706141435544,-157.25702367,0.00022213,2]
[312657445,1706141435553,-283.40600624,0.00022213,2]
[312657446,1706141435563,-155.67728953,0.00022213,2]
[312657447,1706141435571,-304.10598474,0.00022213,2]
[312657448,1706141435581,-155.98983646,0.00022213,2]
[312657449,1706141435591,-202.51790807,0.00022213,2]
[312657450,1706141435601,-227.95344665,0.00022213,2]
[312657451,1706141435611,-189.58736514,0.00022213,2]
[312657452,1706141435621,-157.15593995,0.00022213,2]
[312657453,1706141435631,-155.85966932,0.00022213,2]
[312657454,1706141435641,-1118.51937051,0.00022213,2]
[312657455,1706141435651,-367.08183541,0.00022213,2]
[312657456,1706141435660,-233.97687749,0.00022213,2]
[312657457,1706141435670,-48.02395371,0.00022213,2]
[312657458,1706141435684,-166.43175552,0.00022213,2]
[312657459,1706141435693,-222.15671962,0.00022213,2]
[312657460,1706141435703,-187.6466594,0.00022213,2]
[312657461,1706141435716,-36.7835687,0.00022213,2]
[312657462,1706141435726,-1179.6564313,0.00022213,2]
[312657463,1706141435882,4277.6096426,0.0002164,2]
[312657464,1706141436187,155.0,0.0002164,2]
[312657465,1706141436216,524.62089788,0.0002164,2]
[312657466,1706141437030,1000.0,0.0002164,2]
[312657467,1706141437482,-310.51257539,0.00021674,2]
[312657468,1706141437494,-523.31742461,0.00021674,2]
[312657469,1706141437504,-279.94118443,0.00021717,2]
[312657470,1706141437513,-1.58977214,0.00021728,2]
[312657471,1706141437526,-153.41022786,0.00021728,2]
[312657472,1706141437535,-285.73177074,0.00021728,2]
[312657473,1706141437544,-302.13524095,0.00021728,2]
[312657474,1706141437556,-377.67405672,0.00021728,2]
[312657475,1706141437565,-43.21477818,0.00021728,2]
[312657476,1706141437577,-251.18806219,0.00021728,2]
[312657477,1706141437586,-384.73155794,0.00021728,2]
[312657478,1706141437595,-250.61147486,0.00021728,2]
[312657479,1706141437604,-246.97360389,0.00021728,2]
[312657480,1706141437613,-155.0,0.00021728,2]
[312657481,1706141437623,-1058203.44628434,0.0002179,2]
[312657482,1706141437632,-384.56994741,0.00021806,2]
[312657483,1706141437642,-17182.88114807,0.00022213,2]
[312657484,1706141437651,-2629.74576066,0.00022213,2]
[312657485,1706141437660,-155.0,0.00022214,2]
[312657486,1706141437669,-207.38836977,0.00022216,2]
[312657487,1706141437678,-155.34163208,0.00022216,2]
[312657488,1706141437687,-207.73797985,0.00022216,2]
[312657489,1706141437696,-7103.57322363,0.00022216,5]
[312657490,1706141437706,-160.53662689,0.00022216,2]
[312657491,1706141437715,-167.20117214,0.00022216,2]
[312657492,1706141437724,-156.32542278,0.00022216,2]
[312657493,1706141437733,-239.88481281,0.00022216,2]
[312657494,1706141437742,-155.0,0.00022216,2]
[312657495,1706141437751,-198.22635688,0.00022216,2]
[312657496,1706141437760,-201.84884868,0.00022216,2]
[312657497,1706141437769,-9558.33230344,0.00022216,2]
[312657498,1706141437778,-155.38924793,0.00022216,2]
[312657499,1706141437788,-158.58166305,0.00022216,2]
[312657500,1706141437797,-155.0,0.00022216,2]
[312657501,1706141437805,-164.1687383,0.00022216,2]
[312657502,1706141437814,-155.10255778,0.00022216,2]
[312657503,1706141437823,-1136.61358873,0.00022216,2]
[312657505,1706141437833,-167.68917721,0.00022216,2]
[312657507,1706141437842,-247.85570535,0.00022216,2]
[312657508,1706141437851,-155.27174667,0.00022216,2]
[312657509,1706141437860,-155.0,0.00022216,2]
[312657510,1706141437869,-155.3699649,0.00022216,2]
[312657511,1706141437878,-5959.75704311,0.00022216,10]
[312657512,1706141437888,-2114.73618969,0.00022216,2]
[312657513,1706141437897,-319.09945817,0.00022217,2]
[312657514,1706141437907,-3008.52191293,0.00022217,2]
[312657515,1706141437916,-375.11492264,0.00022217,10]
[312657516,1706141437925,-373.95224658,0.00022217,10]
[312657517,1706141437936,-375.11492265,0.00022218,10]
[312657518,1706141437946,-300.0,0.000223,8]
[312657519,1706141437955,-1251.56673003,0.00022304,2]
[312657520,1706141437965,-16078.89842778,0.0002231,2]
[312657521,1706141437974,-1726.19,0.00022384,2]
[312657522,1706141437983,-700.0,0.000224,8]
[312657523,1706141437993,-16078.89842778,0.00022428,2]
[312657524,1706141438002,-1474.78279841,0.00022435,2]
[312657525,1706141438011,-406.33,0.00022445,2]
[312657526,1706141438020,-1012.73453479,0.00022467,2]
[312657527,1706141438030,-2200.0,0.000225,8]
[312657528,1706141438040,-1400.0,0.000225,8]
[312657529,1706141438048,-1100.0,0.000225,8]
[312657530,1706141438057,-700.0,0.000225,8]
[312657531,1706141438066,-16078.89842778,0.00022546,2]
[312657532,1706141438075,-2900.0,0.000226,8]
[312657533,1706141438085,-1900.0,0.000226,8]
[312657534,1706141438094,-1400.0,0.000226,8]
[312657535,1706141438103,-1000.0,0.000226,8]
[312657536,1706141438112,-155.17544202,0.0002261,2]
[312657537,1706141438121,-16078.89842778,0.00022664,2]
[312657538,1706141438130,-5700.18168145,0.00022699,2]
[312657539,1706141438140,-3445.06678692,0.00022699,2]
[312657540,1706141438149,-437.8073376,0.00022699,2]
[312657541,1706141438158,-177.03159933,0.00022699,2]
[312657542,1706141438166,-204.19173295,0.00022699,4]
[312657543,1706141438176,-3600.0,0.000227,8]
[312657544,1706141438185,-2400.0,0.000227,8]
[312657545,1706141438194,-1800.0,0.000227,8]
[312657546,1706141438204,-1300.0,0.000227,8]
[312657547,1706141438214,-536.41460363,0.00022711,2]
[312657548,1706141438223,-315.24948762,0.00022718,2]
[312657549,1706141438233,-22618.05411628,0.0002275,2]
[312657550,1706141438243,-1474.78279841,0.00022753,2]
[312657551,1706141438252,-16078.89842778,0.00022782,2]
[312657552,1706141438265,-7118.4551,0.00022799,2]
[312657553,1706141438276,-2942.4416,0.00022799,2]
[312657554,1706141438286,-1147.9939,0.00022799,2]
[312657555,1706141438296,-79609.2314,0.00022799,2]
[312657556,1706141438306,-452.4062,0.00022799,2]
[312657557,1706141438315,-5248.99312816,0.000228,2]
[312657558,1706141438324,-5700.18168145,0.000228,2]
[312657559,1706141438334,-3445.06678692,0.000228,2]
[312657560,1706141438345,-437.80733758,0.000228,2]
[312657561,1706141438355,-177.03159931,0.000228,2]
[312657562,1706141438364,-155.0,0.000228,2]
[312657563,1706141438373,-1850.29295599,0.000228,2]
[312657564,1706141438382,-700.0,0.000228,8]
[312657565,1706141438392,-400.0,0.000228,8]
[312657566,1706141438401,-300.0,0.000228,8]
[312657567,1706141438410,-200.0,0.000228,8]
[312657568,1706141438419,-1850.29295598,0.00022807,2]
[312657569,1706141438430,-182.41,0.00022808,2]
[312657570,1706141438439,-1850.29295598,0.00022814,2]
[312657571,1706141438448,-1850.29295598,0.00022821,2]
[312657572,1706141438457,-1850.29295598,0.00022829,2]
[312657573,1706141438467,-1850.29295598,0.00022836,2]
[312657574,1706141438616,-1850.29295598,0.00022843,2]
[312657575,1706141438643,-1850.29295598,0.0002285,2]
[312657576,1706141438653,-1850.29295598,0.00022857,2]
[312657577,1706141438664,-1850.29295598,0.00022864,2]
[312657578,1706141438674,-1850.29295598,0.00022871,2]
[312657579,1706141438684,-1850.29295598,0.00022879,2]
[312657580,1706141438695,-1012.73453479,0.00022885,2]
[312657581,1706141438705,-1850.29295598,0.00022886,2]
[312657582,1706141438715,-1958.52929507,0.00022888,2]
[312657583,1706141438725,-1850.29295598,0.00022893,2]
[312657584,1706141438734,-55555.0,0.00022898,2]
[312657585,1706141438745,-204.62475804,0.00022899,2]
[312657586,1706141438754,-500.0,0.00022899,2]
[312657587,1706141438764,-500.0,0.00022899,2]
[312657588,1706141438773,-500.0,0.00022899,2]
[312657589,1706141438788,-310.92389812,0.00022899,2]
[312657590,1706141438798,-500.0,0.00022899,2]
[312657591,1706141438808,-500.0,0.00022899,2]
[312657592,1706141438817,-500.0,0.00022899,2]
[312657593,1706141438826,-500.0,0.00022899,2]
[312657594,1706141438836,-500.0,0.00022899,2]
[312657595,1706141438846,-500.0,0.00022899,2]
[312657596,1706141438855,-500.0,0.00022899,2]
[312657597,1706141438865,-500.0,0.00022899,2]
[312657598,1706141438874,-500.0,0.00022899,2]
[312657599,1706141438883,-500.0,0.00022899,2]
[312657600,1706141438892,-500.0,0.00022899,2]
[312657601,1706141438901,-500.0,0.00022899,2]
[312657602,1706141438910,-200.0,0.00022899,2]
[312657603,1706141438919,-500.0,0.00022899,2]
[312657604,1706141438928,-500.0,0.00022899,2]
[312657605,1706141438938,-500.0,0.00022899,2]
[312657606,1706141438947,-500.0,0.00022899,2]
[312657607,1706141438957,-500.0,0.00022899,2]
[312657608,1706141438966,-500.0,0.00022899,2]
[312657609,1706141438976,-500.0,0.00022899,2]
[312657610,1706141438985,-500.0,0.00022899,2]
[312657611,1706141438995,-500.0,0.00022899,2]
[312657612,1706141439005,-245000.0,0.000229,2]
[312657613,1706141439014,-320.2277,0.000229,2]
[312657614,1706141439024,-19436.11607954,0.000229,2]
[312657615,1706141439037,-151.30998428,0.000229,2]
[312657616,1706141439047,-151.30998428,0.000229,2]
[312657617,1706141439057,-16078.89842778,0.000229,2]
[312657618,1706141439067,-5248.99312816,0.000229,2]
[312657619,1706141439076,-5700.18168145,0.000229,2]
[312657620,1706141439086,-3445.06678692,0.000229,2]
[312657621,1706141439095,-437.80733758,0.000229,2]
[312657622,1706141439105,-1850.29295598,0.000229,2]
[312657623,1706141439115,-21268.65531815,0.000229,6]
[312657624,1706141439125,-700.0,0.000229,8]
[312657625,1706141439137,-400.0,0.000229,8]
[312657626,1706141439148,-300.0,0.000229,8]
[312657627,1706141439159,-200.0,0.000229,8]
[312657628,1706141439169,-2686.0,0.00022986,2]
[312657629,1706141439180,-1958.52929507,0.0002299,2]
[312657630,1706141439191,-158.9444519,0.00022996,2]
[312657631,1706141439201,-309.41634976,0.00022996,2]
[312657632,1706141439213,-273.55023891,0.00022996,2]
[312657633,1706141439223,-1180.56410783,0.00022996,2]
[312657634,1706141439234,-155.0,0.00022996,2]
[312657635,1706141439244,-155.0,0.00022996,2]
[312657636,1706141439259,-155.0,0.00022996,2]
[312657637,1706141439271,-386.66577497,0.00022998,2]
[312657638,1706141439286,-941.78794294,0.00022998,2]
[312657639,1706141439297,-759.28292396,0.00022998,2]
[312657640,1706141439307,-155.16612944,0.00022998,2]
[312657641,1706141439317,-155.85722777,0.00022998,2]
[312657642,1706141439327,-156.37067661,0.00022998,2]
[312657643,1706141439337,-155.0,0.00022998,2]
[312657644,1706141439348,-155.43144829,0.00022998,2]
[312657645,1706141439359,-155.0,0.00022998,2]
[312657646,1706141439371,-155.0,0.00022998,2]
[312657647,1706141439381,-155.41219897,0.00022998,2]
[312657648,1706141439392,-3045.64408607,0.00022998,2]
[312657649,1706141439403,-864.54645351,0.00022998,2]
[312657650,1706141439415,-500.0,0.00022999,2]
[312657651,1706141439424,-547.92551834,0.00022999,2]
[312657652,1706141439435,-500.0,0.00022999,2]
[312657653,1706141439445,-500.0,0.00022999,2]
[312657654,1706141439456,-500.0,0.00022999,2]
[312657655,1706141439466,-500.0,0.00022999,2]
[312657656,1706141439476,-500.0,0.00022999,2]
[312657657,1706141439486,-500.0,0.00022999,2]
[312657658,1706141439496,-500.0,0.00022999,2]
[312657659,1706141439506,-500.0,0.00022999,2]
[312657660,1706141439516,-500.0,0.00022999,2]
[312657661,1706141439526,-500.0,0.00022999,2]
[312657662,1706141439539,-500.0,0.00022999,2]
[312657663,1706141439549,-500.0,0.00022999,2]
[312657664,1706141439558,-500.0,0.00022999,2]
[312657665,1706141439567,-615.89753445,0.00022999,2]
[312657666,1706141439577,-500.0,0.00022999,2]
[312657667,1706141439586,-500.0,0.00022999,2]
[312657668,1706141439596,-500.0,0.00022999,2]
[312657669,1706141439606,-500.0,0.00022999,2]
[312657670,1706141439616,-500.0,0.00022999,2]
[312657671,1706141439626,-500.0,0.00022999,2]
[312657672,1706141439636,-500.0,0.00022999,2]
[312657673,1706141439646,-207.2947176,0.00022999,2]
[312657674,1706141439655,-500.0,0.00022999,2]
[312657675,1706141439664,-500.0,0.00022999,2]
[312657676,1706141439673,-355.32638574,0.00022999,2]
[312657677,1706141439683,-500.0,0.00022999,2]
[312657678,1706141439692,-500.0,0.00022999,2]
[312657679,1706141439701,-500.0,0.00022999,2]
[312657680,1706141439711,-500.0,0.00022999,2]
[312657681,1706141439719,-500.0,0.00022999,2]
[312657682,1706141439729,-500.0,0.00022999,2]
[312657683,1706141439738,-500.0,0.00022999,2]
[312657684,1706141439748,-500.0,0.00022999,2]
[312657685,1706141439757,-500.0,0.00022999,2]
[312657686,1706141439766,-500.0,0.00022999,2]
[312657687,1706141439776,-500.0,0.00022999,2]
[312657688,1706141439788,-500.0,0.00022999,2]
[312657689,1706141439797,-500.0,0.00022999,2]
[312657690,1706141439807,-500.0,0.00022999,2]
[312657691,1706141439816,-500.0,0.00022999,2]
[312657692,1706141439826,-500.0,0.00022999,2]
[312657693,1706141439835,-500.0,0.00022999,2]
[312657694,1706141439845,-500.0,0.00022999,2]
[312657695,1706141439854,-500.0,0.00022999,2]
[312657696,1706141439864,-155.08546621,0.00022999,2]
[312657697,1706141439873,-500.0,0.00022999,2]
[312657698,1706141439882,-500.0,0.00022999,2]
[312657699,1706141439892,-485.66564681,0.00022999,2]
[312657701,1706141439901,-500.0,0.00022999,2]
[312657703,1706141439911,-500.0,0.00022999,2]
[312657705,1706141439920,-500.0,0.00022999,2]
[312657707,1706141439929,-500.0,0.00022999,2]
[312657709,1706141439939,-500.0,0.00022999,2]
[312657711,1706141439948,-500.0,0.00022999,2]
[312657712,1706141439957,-500.0,0.00022999,2]
[312657713,1706141439967,-500.0,0.00022999,2]
[312657714,1706141439977,-500.0,0.00022999,2]
[312657715,1706141439986,-500.0,0.00022999,2]
[312657716,1706141439995,-300.0,0.00022999,2]
[312657717,1706141440005,-150.0,0.00022999,2]
[312657718,1706141440015,-150.0,0.00022999,2]
[312657719,1706141440024,-150.0,0.00022999,2]
[312657720,1706141440037,-150.0,0.00022999,2]
[312657721,1706141440047,-150.0,0.00022999,2]
[312657722,1706141440056,-150.0,0.00022999,2]
[312657723,1706141440066,-150.0,0.00022999,2]
[312657724,1706141440076,-150.0,0.00022999,2]
[312657725,1706141440086,-150.0,0.00022999,2]
[312657726,1706141440095,-150.0,0.00022999,2]
[312657727,1706141440105,-150.0,0.00022999,2]
[312657728,1706141440115,-150.0,0.00022999,2]
[312657729,1706141440125,-150.0,0.00022999,2]
[312657730,1706141440135,-150.0,0.00022999,2]
[312657731,1706141440145,-150.0,0.00022999,2]
[312657732,1706141440155,-150.0,0.00022999,2]
[312657733,1706141440164,-1251.56673003,0.00022999,2]
[312657734,1706141440173,-1523.07996516,0.00023,2]
[312657735,1706141440183,-4907208.66931662,0.00023,2]
[312657736,1706141440192,-941.41702083,0.00023,2]
[312657737,1706141440201,-3094254.23761192,0.00023,2]
[312657738,1706141440211,-218.76502446,0.00023,20]
[312657739,1706141440221,-1474.78279841,0.0002307,2]
[312657740,1706141440230,-406.33,0.00023245,2]
[312657741,1706141440239,-1000.0,0.00023298,2]
[312657742,1706141440249,-1012.73453479,0.00023303,2]
[312657743,1706141440261,-190.72013332,0.00023334,2]
[312657744,1706141440270,-349.31,0.00023347,2]
[312657745,1706141440282,-1474.78279841,0.00023388,2]
[312657746,1706141440292,-1251.56673003,0.00023694,2]
[312657747,1706141440302,-1474.78279841,0.00023705,2]
[312657748,1706141440312,-1012.73453479,0.00023721,2]
[312657749,1706141440321,-536.41460363,0.00023793,2]
[312657750,1706141440330,-315.24948762,0.00023798,2]
[312657751,1706141440341,-210.0,0.00023804,2]
[312657752,1706141440352,-151.30998428,0.00023994,2]
[312657753,1706141440361,-1474.78279841,0.00024023,2]
[312657754,1706141440371,-1726.19,0.00024028,2]
[312657755,1706141440380,-406.33,0.00024046,2]
[312657756,1706141440389,-1012.73453479,0.0002414,2]
[312657757,1706141440398,-1474.78279841,0.0002434,2]
[312657758,1706141440408,-1251.56673003,0.0002439,2]
[312657759,1706141440417,-1012.73453479,0.00024558,2]
[312657760,1706141440427,-250.0,0.00024658,2]
[312657761,1706141440436,-406.33,0.00024847,2]
[312657762,1706141440446,-536.41460363,0.00024874,2]
[312657763,1706141440456,-315.24948762,0.00024878,2]
[312657764,1706141440466,-182.41,0.00024882,2]
[312657765,1706141440475,-533.47788532,0.00025,2]
[312657766,1706141440484,-381.85823845,0.00025,2]
[312657767,1706141440494,-158.33267346,0.00025,2]
[312657768,1706141440504,-450.0,0.00025,3]
[312657769,1706141440514,-1251.56673003,0.00025085,2]
[312657770,1706141440523,-151.30998428,0.00025198,2]
[312657771,1706141440536,-349.31,0.00025611,2]
[312657772,1706141440545,-1726.19,0.00025672,2]
[312657773,1706141440554,-1251.56673003,0.0002578,2]
[312657774,1706141440563,-1000.0,0.00025887,2]
[312657775,1706141440573,-536.41460363,0.00025955,2]
[312657776,1706141440582,-315.24948762,0.00025959,2]
[312657777,1706141440591,-500.0,0.00026,2]
[312657778,1706141440600,-293.0,0.00026184,2]
[312657779,1706141440609,-151.30998428,0.00026403,2]
[312657780,1706141440618,-1251.56673003,0.00026475,3]
[312657781,1706141440627,-1777.53,0.00026575,2]
[312657782,1706141440637,-1510.23,0.00026575,2]
[312657783,1706141440647,-165.28258848,0.00027,2]
[312657784,1706141440657,-500.0,0.00027,3]
[312657785,1706141440666,-416.63129497,0.00027,2]
[312657786,1706141440676,-536.41460363,0.00027036,3]
[312657787,1706141440685,-315.24948762,0.00027039,3]
[312657788,1706141440695,-1726.19,0.00027315,2]
[312657789,1706141440705,-176.9,0.00027397,2]
[312657790,1706141440715,-151.30998428,0.00027607,2]
[312657791,1706141440725,-176.9,0.00027686,2]
[312657792,1706141440734,-349.31,0.00027875,2]
[312657793,1706141440744,-176.9,0.00027974,2]
[312657794,1706141440754,-536.41460363,0.00028118,3]
[312657795,1706141440764,-315.24948762,0.00028119,3]
[312657796,1706141440773,-176.9,0.00028262,2]
[312657797,1706141440785,-7999.99,0.00028475,6]
[312657798,1706141440793,-1000.0,0.00028475,2]
[312657799,1706141440802,-176.9,0.00028551,2]
[312657800,1706141440812,-504.0,0.00028596,5]
[312657801,1706141440821,-259.0,0.00028803,2]
[312657802,1706141440831,-151.30998428,0.00028812,2]
[312657803,1706141440839,-176.9,0.00028839,2]
[312657804,1706141440849,-1726.19,0.00028959,2]
[312657805,1706141440859,-550.0,0.00029,3]
[312657806,1706141440868,-176.9,0.00029128,2]
[312657808,1706141440877,-315.24948762,0.00029199,4]
[312657809,1706141440887,-536.41460363,0.00029199,4]
[312657810,1706141440896,-15588.9238,0.00029299,2]
[312657811,1706141440905,-16133.7783,0.00029299,2]
[312657812,1706141440914,-4934.9636,0.00029299,2]
[312657813,1706141440924,-1000.0,0.00029299,2]
[312657814,1706141440933,-39893.4789,0.00029299,2]
[312657815,1706141441246,-33510.4359,0.00029299,2]
[312657816,1706141441257,-100000.0,0.00029299,2]
[312657817,1706141441268,-90135.3907,0.00029299,2]
[312657818,1706141441279,-176.9,0.00029416,2]
[312657819,1706141441289,-1728.0692,0.000295,3]
[312657820,1706141441300,-500.0,0.00029699,2]
[312657821,1706141441310,-535.23584196,0.00029699,2]
[312657822,1706141441320,-176.9,0.00029704,2]
[312657823,1706141441330,-176.9,0.00029993,2]
[312657824,1706141441339,-394.35,0.00029995,2]
[312657825,1706141441349,-394.35,0.00029995,2]
[312657826,1706141441359,-394.35,0.00029995,2]
[312657827,1706141441368,-394.35,0.00029995,2]
[312657828,1706141441378,-394.35,0.00029995,2]
[312657829,1706141441388,-394.35,0.00029995,2]
[312657830,1706141441398,-394.35,0.00029995,2]
[312657831,1706141441408,-394.35,0.00029999,2]
[312657832,1706141441417,-394.35,0.00029999,2]
[312657833,1706141441427,-150.0,0.00029999,2]
[312657834,1706141441437,-150.0,0.00029999,2]
[312657835,1706141441447,-155.0,0.0003,2]
[312657836,1706141441456,-510.65225551,0.0003,2]
[312657837,1706141441466,-309381.99916143,0.0003,4]
[312657838,1706141441475,-583.29368938,0.0003,2]
[312657839,1706141441485,-9650.17359953,0.0003,2]
[312657840,1706141441495,-45273.96761291,0.0003,4]
[312657841,1706141441505,-692.06285158,0.0003,2]
[312657842,1706141441515,-12195.78374036,0.0003,4]
[312657843,1706141441525,-1000.0,0.0003,2]
[312657844,1706141441535,-408.34125303,0.0003,2]
[312657845,1706141441545,-408.34125303,0.0003,2]
[312657846,1706141441554,-408.34125303,0.0003,2]
[312657847,1706141441563,-151.30998428,0.00030016,2]
[312657848,1706141441573,-200.0,0.00030078,3]
[312657849,1706141441583,-153.85,0.00030137,2]
[312657850,1706141441592,-349.31,0.00030139,2]
[312657851,1706141441602,-7025.14304135,0.000302,3]
[312657852,1706141441611,-176.9,0.00030281,2]
[312657853,1706141441620,-601.85608576,0.000305,2]
[312657854,1706141441630,-176.9,0.00030569,2]
[312657855,1706141441639,-2367.07,0.0003062,2]
[312657856,1706141441648,-3969.66937994,0.00030835,2]
[312657857,1706141441658,-924.31,0.00030838,2]
[312657858,1706141441667,-2276.0,0.00030838,2]
[312657859,1706141441677,-4182.0,0.00030838,2]
[312657860,1706141441688,-4956.291,0.00030838,2]
[312657861,1706141441698,-2909.0,0.00030838,2]
[312657862,1706141441707,-19732.0,0.00030838,2]
[312657863,1706141441716,-1031.0,0.00030838,2]
[312657864,1706141441725,-176.9,0.00030858,2]
[312657865,1706141441734,-15932.44966073,0.000309,2]
[312657866,1706141441743,-403.0,0.00030974,2]
[312657867,1706141441752,-844.311,0.00030974,2]
[312657868,1706141441762,-1220.031,0.00030974,2]
[312657869,1706141441771,-449.0,0.00030974,2]
[312657870,1706141441781,-1852.0,0.00030974,2]
[312657871,1706141441790,-945.0,0.00030974,2]
[312657872,1706141441799,-1822.051,0.00030974,2]
[312657873,1706141441808,-837.0,0.00030974,2]
[312657874,1706141441817,-235.0,0.00030974,2]
[312657875,1706141441826,-838.028,0.00030974,2]
[312657876,1706141441835,-368.199,0.00030974,2]
[312657877,1706141441844,-1138.001,0.00030974,2]
[312657878,1706141441853,-507.0,0.00030974,2]
[312657879,1706141441862,-278.73030459,0.00031,2]
[312657880,1706141441872,-7616.32576895,0.00031,2]
[312657881,1706141441882,-370.32718228,0.00031,2]
[312657882,1706141441891,-600.0,0.00031,3]
[312657883,1706141441900,-30000.0,0.00031,2]
[312657884,1706141441909,-1000.0,0.00031064,2]
[312657885,1706141441918,-176.9,0.00031146,2]
[312657886,1706141441927,-151.30998428,0.0003122,2]
[312657887,1706141441936,-176.9,0.00031435,2]
[312657888,1706141441945,-153.85,0.00031507,2]
[312657889,1706141441954,-180.0,0.00031644,2]
[312657890,1706141441963,-21737.16,0.000317,2]
[312657891,1706141441972,-176.9,0.00031723,2]
[312657892,1706141441981,-166.9,0.00031762,2]
[312657893,1706141441991,-51712.842,0.00031778,2]
[312657894,1706141442000,-7924.7319746,0.00031778,2]
[312657895,1706141442010,-253.4560527,0.00031778,2]
[312657896,1706141442020,-54815.8333333,0.00031778,2]
[312657897,1706141442031,-663.1676119,0.00031778,2]
[312657898,1706141442041,-53940.0982819,0.00031778,2]
[312657899,1706141442050,-483.6914352,0.00031778,2]
[312657900,1706141442060,-394.35,0.00031799,2]
[312657901,1706141442069,-329782.94445,0.000318,3]
[312657902,1706141442079,-150.0,0.00031999,2]
[312657903,1706141442088,-150.0,0.00031999,2]
[312657904,1706141442097,-3778.24244306,0.00032,2]
[312657905,1706141442106,-1961.97218033,0.00032,2]
[312657906,1706141442115,-129812.82659171,0.00032,2]
[312657907,1706141442124,-176.9,0.00032011,2]
[312657908,1706141442133,-176.9,0.000323,2]
[312657909,1706141442143,-349.31,0.00032403,2]
[312657910,1706141442152,-151.30998428,0.00032425,2]
[312657911,1706141442161,-200.0,0.00032499,3]
[312657912,1706141442171,-168.68,0.000325,2]
[312657913,1706141442180,-176.9,0.00032588,2]
[312657914,1706141442190,-204.0,0.00032637,2]
[312657915,1706141442199,-203.0,0.00032637,2]
[312657916,1706141442209,-51998.0385333,0.00032678,2]
[312657917,1706141442218,-7924.7319746,0.00032678,2]
[312657918,1706141442228,-253.4560527,0.00032678,2]
[312657919,1706141442238,-1106.34701402,0.000327,2]